fUST/lending_fUST_20240113
["ID","MTS","AMOUNT","RATE_DAILY","PERIOD"]
[311444456,1705125049617,-2036.81782964,0.00029999,2]
[311444457,1705125049627,-1990.13068714,0.00029999,2]
[311444458,1705125049637,-1742.95157982,0.00029999,2]
[311444459,1705125049646,-155.01395126,0.00029999,2]
[311444460,1705125049655,-20868.24199837,0.00029999,2]
[311444461,1705125049666,-1251.04496716,0.00029999,2]
[311444462,1705125049675,-4949.38274905,0.0003,14]
[311444480,1705125494500,200.0,0.00023089,7]
[311444484,1705125580272,155.0310062,0.00021889,8]
[311444487,1705125946967,-185.0,0.0003066,30]
[311444488,1705125946992,-150.5,0.0003067,30]
[311444489,1705125947016,-150.5,0.0003067,30]
[311444490,1705125947041,-2223.0,0.0003067,30]
[311444491,1705125947066,-185.0,0.0003067,30]
[311444492,1705125947090,-150.5,0.0003068,30]
[311444493,1705125947113,-150.5,0.0003068,30]
[311444494,1705125947137,-2223.0,0.0003068,30]
[311444495,1705125947161,-261.2,0.0003068,30]
[311444496,1705125947184,-150.5,0.0003068,30]
[311444497,1705125947208,-185.0,0.0003068,30]
[311444498,1705125947232,-150.5,0.0003069,30]
[311444499,1705125947255,-300.44,0.0003069,30]
[311444500,1705125947278,-150.5,0.0003069,30]
[311444501,1705125947301,-2223.0,0.0003069,30]
[311444502,1705125947324,-150.5,0.0003069,30]
[311444503,1705125947347,-150.5,0.0003069,30]
[311444504,1705125947370,-150.51,0.00030823,30]
[311444505,1705125947398,-176.0,0.00030878,30]
[311444506,1705125947529,-150.5,0.00030888,30]
[311444507,1705125947562,-2000.0,0.00031723,30]
[311444508,1705125947585,-2000.0,0.00031723,30]
[311444509,1705125947610,-2000.0,0.00031723,30]
[311444510,1705125947634,-150.5,0.0003187,30]
[311444511,1705125947658,-150.5,0.0003187,30]
[311444512,1705125947681,-2223.0,0.0003187,30]
[311444513,1705125947705,-185.0,0.0003187,30]
[311444514,1705125947729,-150.5,0.0003188,30]
[311444515,1705125947752,-150.5,0.0003188,30]
[311444516,1705125947778,-2223.0,0.0003188,30]
[311444517,1705125947801,-185.0,0.0003188,30]
[311444518,1705125947825,-150.5,0.0003189,30]
[311444519,1705125947848,-150.5,0.0003189,30]
[311444520,1705125947872,-2223.0,0.0003189,30]
[311444521,1705125947895,-185.0,0.0003189,30]
[311444522,1705125947921,-2195.0,0.00032,120]
[311444523,1705125947951,-2223.0,0.0003378,30]
[311444524,1705125947975,-185.0,0.00033787,30]
[311444525,1705125947998,-239.84,0.0003379,30]
[311444526,1705125948022,-275.43,0.0003379,30]
[311444527,1705125948046,-2223.0,0.0003379,30]
[311444528,1705125948069,-185.0,0.00033797,30]
[311444529,1705125948095,-168.509802,0.00034521,38]
[311444530,1705125948118,-168.509802,0.00034521,47]
[311444531,1705125948141,-168.509802,0.00034521,56]
[311444532,1705125948165,-168.509802,0.00034521,65]
[311444533,1705125948188,-168.509802,0.00034521,74]
[311444534,1705125948211,-168.509802,0.00034521,83]
[311444535,1705125948235,-168.509802,0.00034521,92]
[311444536,1705125948259,-168.509802,0.00034521,101]
[311444537,1705125948282,-168.509802,0.00034521,110]
[311444538,1705125948305,-168.509802,0.00034521,119]
[311444539,1705125948329,-348.0,0.000346,120]
[311444540,1705125948354,-194345.73003791,0.00035,30]
[311444541,1705125948378,-6155.813733,0.00035,30]
[311444542,1705125948405,-1602.762591,0.00035616,120]
[311444543,1705125948428,-2008.0,0.00035678,30]
[311444544,1705125948452,-315.0,0.00036,120]
[311444545,1705125948476,-8317.38070092,0.00036,30]
[311444546,1705125948500,-534.30256127,0.00036,30]
[311444547,1705125948524,-1000.0,0.00036,36]
[311444548,1705125948548,-192.58712057,0.00036,120]
[311444549,1705125948572,-2224.58,0.0003658,30]
[311444550,1705125948595,-190.0,0.0003658,30]
[311444551,1705125948618,-2223.0,0.0003659,30]
[311444552,1705125948641,-185.0,0.0003659,30]
[311444553,1705125948666,-500.0,0.000366,30]
[311444554,1705125948690,-1000.0,0.00037,37]
[311444555,1705125948713,-418.472319,0.00037,120]
[311444556,1705125948737,-1071.72138047,0.0003707,31]
[311444557,1705125948761,-500.0,0.00038,60]
[311444558,1705125948784,-1481.77472453,0.00038,120]
[311444559,1705125948811,-1000.0,0.00038,38]
[311444560,1705125948837,-1208.22956362,0.00038311,30]
[311444561,1705125948860,-1000.0,0.00038356,120]
[311444562,1705125948883,-1000.0,0.00038356,120]
[311444563,1705125948905,-1129.91699743,0.00038356,120]
[311444564,1705125948928,-1000.0,0.000385,30]
[311444565,1705125948951,-633.31967685,0.00038678,30]
[311444566,1705125948974,-745.68495682,0.000388,120]
[311444567,1705125948998,-1000.0,0.00039,39]
[311444568,1705125949021,-767.59698839,0.00039173,120]
[311444569,1705125949045,-132945.60862822,0.00039533,30]
[311444570,1705125956388,-152165.4972,0.00039533,30]
[311444571,1705125956415,-1355.03525571,0.00039726,30]
[311444572,1705125956440,-246479.46754429,0.000398,30]
[311444573,1705125960637,-253520.53245571,0.000398,30]
[311444574,1705125960662,-794.90477023,0.000399,120]
[311444575,1705125960687,-81600.0,0.0003999,60]
[311444576,1705125960712,-900.0,0.0004,60]
[311444577,1705125960736,-154.90705577,0.0004,120]
[311444578,1705125960759,-181.50335744,0.0004,120]
[311444579,1705125960783,-1000.0,0.0004,40]
[311444580,1705125960806,-3000.0,0.0004,30]
[311444581,1705125960829,-58848.15236085,0.0004,120]
[311444582,1705125969242,-398.51400279,0.00038,120]
[311444583,1705125969269,-97658.19589948,0.0004,120]
[311444584,1705125969293,-1000.0,0.0004,30]
[311444585,1705125969317,-200.0,0.0004,30]
[311444586,1705125969341,-3352.30991778,0.0004,120]
[311444587,1705125969365,-216721.89832576,0.0004,60]
[311444588,1705125969390,-2000.0,0.0004,120]
[311444589,1705125969416,-393.14559684,0.0004,120]
[311444590,1705125969441,-78275.93625735,0.00040058,60]
[311444591,1705125975716,-185370.39735109,0.00040058,60]
[311444592,1705125975742,-200.0,0.00040763,30]
[311444593,1705125975768,-348.0,0.00040763,30]
[311444594,1705125975792,-1000.0,0.00041,41]
[311444595,1705125975815,-2970.24951436,0.00041,90]
[311444596,1705125975839,-234.0,0.00041016,31]
[311444597,1705125975863,-4020.70476729,0.0004107,30]
[311444598,1705125975885,-258.40758026,0.00041095,120]
[311444599,1705125979569,3321.63151523,0.0004,120]
[311444600,1705125980965,1202.071943,0.00035616,120]
[311444602,1705125988561,-400000.0,0.00041173,30]
[311444604,1705126039100,-155.03097831,0.00019892,2]
[311444605,1705126043105,-432.3109533,0.00019892,2]
[311444606,1705126043126,-2928.5969178,0.00019892,2]
[311444607,1705126043148,-554.4461358,0.00019893,2]
[311444608,1705126043169,-155.0294556,0.00019894,3]
[311444609,1705126043189,-155.02325349,0.00019895,2]
[311444610,1705126043208,-509.2399507,0.00019896,2]
[311444611,1705126043229,-1240.5015561,0.00019896,2]
[311444612,1705126043251,-171.27962684,0.000199,2]
[311444613,1705126043275,-832.80712864,0.00019988,2]
[311444615,1705126095105,200.0,0.00021999,7]
[311444617,1705126123386,-633.50515692,0.00019988,2]
[311444618,1705126123412,-1240.5015561,0.00019999,2]
[311444619,1705126123438,-7596.617864,0.0002,2]
[311444620,1705126123464,-2529.37542298,0.0002,2]
[311444621,1705126123659,-5067.24244102,0.0002,2]
[311444622,1705126123686,-6932.75755898,0.0002,2]
[311444623,1705126123779,-663.86030502,0.0002,2]
[311444624,1705126123808,-7596.617864,0.0002,2]
[311444625,1705126123835,-3739.52183098,0.0002,2]
[311444626,1705126123917,-3857.09603302,0.0002,2]
[311444627,1705126123946,-2475.7657507,0.00020004,2]
[311444643,1705126231746,-191.10838986,0.00020963,2]
[311444644,1705126231756,-171.27962684,0.00020964,2]
[311444645,1705126231765,-6687.6119833,0.00021,2]
[311444660,1705126238624,-2281.92648774,0.00021,2]
[311444756,1705126243928,-3505.59227488,0.00021,2]
[311444762,1705126245872,-4485.93857937,0.00021,2]
[311444768,1705126694783,200.0,0.00023099,7]
[311444770,1705126994895,200.0,0.00023099,7]
[311444772,1705127093550,-582.30213437,0.000189,2]
[311444773,1705127093682,-11.88371703,0.000189,2]
[311444776,1705127238190,-160.82569621,0.00020929,2]
[311444777,1705127238213,-155.0310062,0.0002093,4]
[311444778,1705127238233,-149.65945319,0.0002093,2]
[311444779,1705127244099,-191.10838986,0.00020928,2]
[311444780,1705127244120,-28.87717696,0.0002093,2]
[311444781,1705127244140,-25.26290928,0.0002093,2]
[311444782,1705127294905,200.0,0.00023073,7]
[311444793,1705127434166,-366.26274898,0.00020919,2]
[311444794,1705127434176,-174.94849142,0.0002092,2]
[311444795,1705127434188,-95.87060064,0.00020921,2]
[311444861,1705127443731,-59.15730438,0.00020921,2]
[311444862,1705127443742,-443.21282408,0.00020974,2]
[311444863,1705127443788,-66.02712662,0.00020974,2]
[311444865,1705127443799,-586.63091856,0.00020975,2]
[311444918,1705127595733,200.0,0.00023098,7]
[311444933,1705127896138,200.0,0.00023098,7]
[311444944,1705128088431,-155.02480397,0.00020959,4]
[311444945,1705128096449,-178.53663015,0.0002096,2]
[311444948,1705128125224,-155.02480397,0.00020997,2]
[311444949,1705128128470,-451.5964105,0.00020998,2]
[311444950,1705128137451,-4000.0,0.00020999,2]
[311444954,1705128296224,-295.0429882,0.000189,2]
[311444955,1705128296354,-6.02128547,0.000189,2]
[311444959,1705128454120,-366.26274898,0.00020996,2]
[311444960,1705128454142,-105.47034038,0.00020997,4]
[311444961,1705128495280,200.0,0.00023099,7]
[311445003,1705128632149,-155.03255684,0.00020996,2]
[311445004,1705128632159,-49.55911522,0.00020997,4]
[311445006,1705128632168,-1033.35484442,0.00020999,2]
[311445008,1705128632181,-5476.36945629,0.00020999,2]
[311445009,1705128632190,-1523.63054171,0.00021,2]
[311445010,1705128632201,-1058.62344323,0.00021,2]
[311445052,1705128644757,-396.85223137,0.00021,2]
[311445257,1705129522309,-509.2399507,0.00018898,2]
[311445258,1705129522337,-155.0341075,0.00018899,3]
[311445259,1705129522362,-31.47641895,0.000189,2]
[311445260,1705129522532,-169.23309683,0.000189,2]
[311445261,1705129527919,-1215.69152498,0.00018898,2]
[311445262,1705129528024,-24.81003112,0.00018898,2]
[311445268,1705129632253,-155.03097831,0.00020996,2]
[311445270,1705129637093,-432.3109533,0.00020996,2]
[311445271,1705129637113,-2928.5969178,0.00020997,2]
[311445272,1705129637134,-554.4461358,0.00020997,2]
[311445273,1705129637155,-3218.81899616,0.00021,2]
[311445318,1705129832334,-2553.45568339,0.00021,2]
[311445320,1705129832347,-2771.07736543,0.00021,2]
[311445321,1705129832356,-832.80712864,0.00022497,2]
[311445322,1705129832364,-200.70951578,0.000239,2]
[311445324,1705129832374,-15950.0570935,0.00026214,2]
[311445325,1705129832383,-587.34193161,0.00026894,2]
[311445326,1705129832392,-171.27962684,0.00026895,3]
[311445328,1705129832401,-155.0294556,0.00026995,2]
[311445329,1705129832410,-310.52440232,0.00026996,2]
[311445330,1705129832419,-10131.0472122,0.000274,2]
[311445331,1705129832430,-151.0,0.00027965,2]
[311445332,1705129832439,-213.875569,0.00027965,2]
[311445333,1705129832448,-10131.0472122,0.00027965,2]
[311445334,1705129832457,-8600.06356206,0.00027965,2]
[311445618,1705129843996,-155.0310062,0.00020999,4]
[311445619,1705129844006,-535.95461121,0.00027965,2]
[311445620,1705129844018,-627.19165379,0.00027965,2]
[311445647,1705129846517,-367.83738514,0.00027965,2]
[311445648,1705129846526,-2287.83532481,0.00027965,2]
[311445689,1705131032541,-606.61751586,0.00025942,2]
[311445875,1705131046920,-155.03720893,0.00025941,4]
[311445876,1705131046929,-853.88434994,0.00025941,2]
[311445877,1705131046940,-1313.37229048,0.00025941,2]
[311445990,1705131588055,-1089.9773918,0.00020503,2]
[311445991,1705131588297,-22.24443657,0.00020503,2]
[311445993,1705131624803,-155.0,0.00020502,2]
[311445994,1705131624830,-148.8,0.00020503,2]
[311445995,1705131624973,-6.2,0.00020503,2]
[311445996,1705131626787,297.6,0.00020502,2]
[311445997,1705131626814,154.34693227,0.00020502,2]
[311445998,1705131627722,-266.6569661,0.00020502,2]
[311445999,1705131627821,-5.4419789,0.00020502,2]
[311446000,1705131628067,261.2149872,0.00020502,2]
[311446001,1705131628096,10.63899993,0.00020502,2]
[311446002,1705131628305,256.01796617,0.00020502,2]
[311446003,1705131628333,104.88591221,0.00020502,2]
[311446004,1705131629760,155.0,0.00020502,2]
[311446005,1705131629852,6.77105389,0.00020502,2]
[311446006,1705131629878,206.29791879,0.00020502,2]
[311446007,1705131633406,-12000.0,0.00020503,2]
[311446008,1705131633535,-12000.0,0.00020503,2]
[311446009,1705131633670,-12000.0,0.00020503,2]
[311446010,1705131633777,-12000.0,0.00020503,2]
[311446011,1705131633951,-12000.0,0.00020503,2]
[311446012,1705131634053,-12000.0,0.00020503,2]
[311446013,1705131634190,-12000.0,0.00020503,2]
[311446014,1705131634773,-12000.0,0.00020503,2]
[311446015,1705131635234,-12000.0,0.00020503,2]
[311446016,1705131635265,-12000.0,0.00020503,2]
[311446017,1705131635296,-12000.0,0.00020503,2]
[311446018,1705131635509,-12000.0,0.00020503,2]
[311446019,1705131635648,-12000.0,0.00020503,2]
[311446020,1705131635729,-12000.0,0.00020503,2]
[311446021,1705131635919,-12000.0,0.00020503,2]
[311446022,1705131635991,-12000.0,0.00020503,2]
[311446023,1705131636039,-12000.0,0.00020503,2]
[311446024,1705131636104,-12000.0,0.00020503,2]
[311446025,1705131636169,-12000.0,0.00020503,2]
[311446026,1705131636285,-12000.0,0.00020503,2]
[311446027,1705131636528,-12000.0,0.00020503,2]
[311446028,1705131636622,-12000.0,0.00020503,2]
[311446029,1705131636655,-12000.0,0.00020503,2]
[311446030,1705131636820,-7680.72239077,0.00020503,2]
[311446033,1705131638857,4319.27760923,0.00019888,2]
[311446034,1705131638883,4428.40384326,0.00019888,2]
[311446035,1705131642300,-12000.0,0.00020502,2]
[311446036,1705131642521,-3888.77749284,0.00020502,2]
[311446037,1705131642596,1251.25826469,0.00020502,2]
[311446040,1705131649918,-902.06325621,0.00020502,2]
[311446041,1705131649948,-135.18121315,0.00020503,2]
[311446042,1705131650155,-253.67809972,0.00020502,2]
[311446043,1705131650183,-21.16825448,0.00020503,2]
[311446044,1705131650982,762.39811516,0.00020503,2]
[311446045,1705131651013,1037.24446936,0.00020503,2]
[311446046,1705131651327,-12000.0,0.00020503,2]
[311446047,1705131651498,-12000.0,0.00020503,2]
[311446048,1705131651688,-12000.0,0.00020503,2]
[311446049,1705131651904,-12000.0,0.00020503,2]
[311446050,1705131651941,248.60453773,0.00020502,2]
[311446051,1705131651969,37.30297532,0.00020502,2]
[311446052,1705131652003,-12000.0,0.00020503,2]
[311446053,1705131652102,-12000.0,0.00020503,2]
[311446054,1705131652175,211.30156241,0.00020493,3]
[311446055,1705131652206,248.60453773,0.00020493,3]
[311446056,1705131652282,-6827.68389986,0.00020493,3]
[311446057,1705131652311,-2764.43943109,0.00020503,2]
[311446058,1705131657233,-1815.20362752,0.00019888,2]
[311446059,1705131657628,-37.04497199,0.00019888,2]
[311446067,1705131754135,5000.0,0.00021375,5]
[311446070,1705131768132,2242.39866587,0.00020997,5]
[311446072,1705131784835,-265.27511808,0.00020375,2]
[311446073,1705131784988,-5.41377792,0.00020375,2]
[311446074,1705131786875,259.86134016,0.00020375,2]
[311446075,1705131786903,265.27511808,0.00020375,2]
[311446076,1705131787391,-3815.02962276,0.00020375,2]
[311446078,1705131810637,-1188.14049872,0.00020467,2]
[311446079,1705131810781,-24.24776528,0.00020467,2]
[311446080,1705131810807,-1163.89273344,0.00020467,2]
[311446081,1705131811107,-48.49553056,0.00020467,2]
[311446082,1705131811134,-1212.388264,0.00020467,2]
[311446083,1705131811210,1115.39720288,0.00020467,2]
[311446084,1705131811235,96.99106112,0.00020467,2]
[311446085,1705131811727,1212.388264,0.00020467,2]
[311446087,1705131816331,-155.0,0.00020466,2]
[311446088,1705131816358,-350.58580081,0.00020466,2]
[311446089,1705131816477,-10.31807757,0.00020466,2]
[311446095,1705131909416,-297.40329025,0.000189,2]
[311446096,1705131909538,-6.0694549,0.000189,2]
[311446097,1705131910666,155.0,0.00018899,2]
[311446098,1705131911779,136.33383535,0.00018899,2]
[311446099,1705131911805,109.8627375,0.00018899,2]
[311446100,1705131913567,155.0,0.00018899,3]
[311446101,1705131915658,-1950.61917686,0.00018899,2]
[311446102,1705131915751,-39.80855463,0.00018899,2]
[311446103,1705131915776,-191.10838986,0.00018899,2]
[311446104,1705131915801,-155.0,0.00018899,2]
[311446106,1705131921460,-543.35721308,0.00018898,2]
[311446107,1705131921666,-11.08892272,0.00018898,2]
[311446108,1705131940581,-155.0,0.00019194,2]
[311446109,1705131940607,-148.8,0.00019194,2]
[311446110,1705131940736,-6.2,0.00019194,2]
[311446111,1705131941303,166.70935578,0.00019194,2]
[311446112,1705131941662,130.89064422,0.00019194,2]
[311446113,1705131941688,29.93505199,0.00019194,2]
[311446114,1705131942398,213.06897268,0.00019194,2]
[311446115,1705131943210,60.79597533,0.00019194,2]
[311446117,1705131950090,-155.0,0.00019193,2]
[311446118,1705131950115,-89.21994418,0.00019194,2]
[311446119,1705131950232,-4.98408049,0.00019194,2]
[311446120,1705131958302,-174.94849142,0.00019193,2]
[311446121,1705131958328,-495.55618186,0.00019194,2]
[311446122,1705131958381,-13.68376884,0.00019194,2]
[311446123,1705131958408,-178.53663015,0.00019194,2]
[311446124,1705131965768,-316.12909883,0.00019194,2]
[311446125,1705131965988,-6.45161426,0.00019194,2]
[311446126,1705131970687,-162.84813564,0.00019193,2]
[311446127,1705131970713,-1541.94227484,0.00019193,2]
[311446128,1705131970868,-34.79164103,0.00019193,2]
[311446129,1705131971502,1240.5015561,0.00019193,2]
[311446130,1705131972748,-673.10335439,0.00019194,2]
[311446131,1705131973076,-13.73680315,0.00019194,2]
[311446132,1705131974490,285.90751305,0.00019194,2]
[311446133,1705131978084,-855.58384052,0.00019194,2]
[311446134,1705131978372,-17.4608947,0.00019194,2]
[311446135,1705131980635,366.26274898,0.00019194,2]
[311446136,1705131981989,-155.0,0.00019194,2]
[311446137,1705131982020,-148.8,0.00019194,2]
[311446138,1705131982260,-6.2,0.00019194,2]
[311446139,1705131982287,-155.0,0.00019194,2]
[311446140,1705131982604,142.6,0.00019194,2]
[311446141,1705131982630,129.25398713,0.00019194,2]
[311446142,1705131988999,-316.54547351,0.00019194,2]
[311446143,1705131989146,-6.4601117,0.00019194,2]
[311446144,1705131989291,-155.0,0.00019195,3]
[311446145,1705131989333,-266.71589669,0.0002,2]
[311446146,1705132022958,-155.0,0.00018891,3]
[311446147,1705132022984,-247.80494267,0.00020467,2]
[311446148,1705132023061,-163.22050903,0.00020467,2]
[311446149,1705132058272,-400.22268597,0.0001889,2]
[311446150,1705132058300,-143.89554628,0.00018891,3]
[311446151,1705132058573,-11.10445372,0.00018891,3]
[311446152,1705132058602,-155.0,0.0002,2]
[311446153,1705132061208,378.01377853,0.0001889,2]
[311446154,1705132062073,-473.50772325,0.0001889,2]
[311446155,1705132062181,-9.66342292,0.0001889,2]
[311446156,1705132063498,155.0,0.0001889,2]
[311446157,1705132087277,-155.0,0.00018878,3]
[311446158,1705132087308,-148.8,0.00019998,2]
[311446159,1705132087543,-6.2,0.00019998,2]
[311446160,1705132087573,-155.0,0.00019999,2]
[311446161,1705132089804,142.6,0.00019998,2]
[311446162,1705132089836,32.34849142,0.00019998,2]
[311446163,1705132091392,-499.05515169,0.00019998,2]
[311446164,1705132091689,-10.18479901,0.00019998,2]
[311446165,1705132095624,-1703.28226241,0.00019997,2]
[311446166,1705132095755,-34.7608625,0.00019997,2]
[311446167,1705132096743,200.0,0.00023052,7]
[311446171,1705132164345,-241.27264139,0.00018877,2]
[311446172,1705132164620,-4.92393146,0.00018877,2]
[311446173,1705132165510,162.84813564,0.00018877,2]
[311446174,1705132174748,-155.0,0.00018877,2]
[311446175,1705132174776,-258.28157876,0.0002,2]
[311446176,1705132174943,-8.43431793,0.0002,2]
[311446177,1705132176102,155.0,0.00018876,3]
[311446178,1705132180663,-266.41690739,0.00018876,2]
[311446179,1705132180806,-5.43707974,0.00018876,2]
[311446181,1705132187757,-12000.0,0.00019864,2]
[311446182,1705132188209,-12000.0,0.00019864,2]
[311446183,1705132188264,-900.0,0.00019864,2]
[311446194,1705132232565,-155.0,0.00018782,3]
[311446195,1705132232594,-110.27511808,0.00019851,2]
[311446196,1705132232718,-160.41377792,0.00019851,2]
[311446240,1705132237851,-1990.42773149,0.00020845,2]
[311446242,1705132237860,-509.2399507,0.00020846,2]
[311446244,1705132237869,-23824.33076765,0.00020847,2]
[311446246,1705132237878,-19835.34944112,0.00020847,2]
[311446248,1705132237887,-1579.55237576,0.00020847,2]
[311446250,1705132237896,-2928.5969178,0.00020847,2]
[311446252,1705132237905,-81086.75247006,0.00020854,2]
[311446254,1705132237914,-15888.77749284,0.00020855,2]
[311446256,1705132237923,-4790.79275157,0.00020856,2]
[311446258,1705132237933,-20842.42787433,0.00020856,2]
[311446260,1705132237942,-36905.76332305,0.00020857,2]
[311446262,1705132237951,-1195.69868667,0.00020857,2]
[311446265,1705132237961,-4461.39040503,0.00020858,2]
[311446268,1705132237970,-5956.47000547,0.00020858,2]
[311446270,1705132237979,-400.22268597,0.00020858,2]
[311446274,1705132237989,-2035.80105868,0.00020858,2]
[311446277,1705132237999,-3739.83692248,0.00020859,2]
[311446280,1705132238008,-163.34498108,0.00020869,2]
[311446282,1705132238019,-247.16357384,0.00020869,2]
[311446283,1705132238029,-272.23338199,0.00020869,2]
[311446285,1705132238038,-292.18002156,0.00020869,2]
[311446288,1705132238047,-410.93401976,0.00020878,2]
[311446290,1705132238056,-155.20930172,0.00020975,2]
[311446292,1705132238066,-155.37359722,0.00020975,2]
[311446294,1705132238075,-862.58636192,0.00020975,2]
[311446296,1705132238084,-175.0053645,0.00020975,2]
[311446297,1705132238092,-155.59441733,0.00020975,2]
[311446299,1705132238102,-204.51204576,0.00020975,2]
[311446301,1705132238110,-1737.50355215,0.00020975,2]
[311446303,1705132238119,-979.81451805,0.0002099,2]
[311446305,1705132238128,-686.42603668,0.0002099,2]
[311446307,1705132238138,-286.60390027,0.0002099,2]
[311446309,1705132238147,-593.14721679,0.0002099,2]
[311446311,1705132238156,-208.9483681,0.0002099,2]
[311446313,1705132238165,-191.26090819,0.0002099,2]
[311446315,1705132238174,-393.83792509,0.0002099,2]
[311446317,1705132238183,-323.84922554,0.0002099,2]
[311446319,1705132238192,-299.18380868,0.00020991,2]
[311446321,1705132238201,-326.91284264,0.00021,2]
[311446324,1705132238211,-555.08915362,0.00021327,2]
[311446325,1705132238220,-155.12392617,0.00021327,2]
[311446327,1705132238229,-167.13252298,0.00021327,2]
[311446329,1705132238238,-160.82569621,0.00021327,2]
[311446331,1705132238247,-155.31068592,0.00021327,2]
[311446333,1705132238256,-213.55662846,0.00021327,2]
[311446335,1705132238267,-155.8383382,0.00021327,2]
[311446337,1705132238278,-974.35417388,0.00021327,2]
[311446339,1705132238288,-242.43842812,0.00021328,2]
[311446341,1705132238297,-191.33859155,0.00021328,2]
[311446343,1705132238306,-361.77320852,0.00021363,2]
[311446345,1705132238316,-155.54690548,0.00021363,2]
[311446347,1705132238325,-164.049905,0.00021381,2]
[311446349,1705132238335,-1119.184732,0.00021648,2]
[311446351,1705132238344,-1119.184732,0.00021648,2]
[311446353,1705132238354,-1119.184732,0.00021649,2]
[311446355,1705132238363,-1119.184732,0.00021649,2]
[311446357,1705132238373,-192.713332,0.00021918,2]
[311446359,1705132238382,-156.94549562,0.00022,2]
[311446361,1705132238391,-425.16748197,0.00022,2]
[311446363,1705132238400,-3941.45443239,0.00022,2]
[311446365,1705132238409,-1119.184732,0.00022648,2]
[311446367,1705132238419,-1119.184732,0.00022648,2]
[311446369,1705132238431,-451.67629622,0.00022756,2]
[311446371,1705132238441,-636.22407703,0.00022756,2]
[311446373,1705132238450,-2872.50360392,0.00022756,2]
[311446375,1705132238459,-863.09747679,0.00022756,2]
[311446377,1705132238470,-254.38756199,0.00022756,2]
[311446379,1705132238478,-466.88440498,0.00022756,2]
[311446381,1705132238488,-272.7015152,0.00022757,2]
[311446383,1705132238501,-155.23741757,0.00022757,2]
[311446385,1705132238512,-18881.3541867,0.00022769,2]
[311446388,1705132238522,-1119.184732,0.00022769,2]
[311446389,1705132238531,-1119.184732,0.00022769,2]
[311446391,1705132238540,-1177.17932525,0.00022781,2]
[311446393,1705132238550,-676.95397771,0.00022781,2]
[311446396,1705132238560,-2030.72904445,0.00022781,2]
[311446397,1705132238569,-192.84320712,0.00022781,2]
[311446400,1705132238581,-155.10433612,0.00022781,2]
[311446401,1705132238590,-734.26482131,0.00022781,2]
[311446402,1705132238600,-284.72592957,0.00022781,2]
[311446403,1705132238610,-232.60464348,0.00022781,2]
[311446404,1705132238619,-302.72349332,0.00022781,2]
[311446405,1705132238628,-525.7882447,0.00022781,2]
[311446406,1705132238638,-155.51953678,0.00022781,2]
[311446407,1705132238647,-298.41078949,0.00022781,2]
[311446408,1705132238656,-167.23543619,0.00022781,2]
[311446409,1705132238666,-183.30400087,0.00022781,2]
[311446410,1705132238676,-157.0556053,0.00022781,2]
[311446412,1705132238685,-572.76090318,0.00022781,2]
[311446413,1705132238694,-9916.5701211,0.00022783,2]
[311446414,1705132238704,-1056.84650402,0.00022805,2]
[311446415,1705132238713,-262.57679556,0.00022805,2]
[311446416,1705132238722,-155.58169426,0.00022805,2]
[311446417,1705132238731,-2510.66196852,0.00022805,2]
[311446418,1705132238741,-232.40652231,0.00022805,2]
[311446419,1705132238750,-410.93401973,0.00023132,2]
[311446420,1705132238760,-303.47274515,0.000239,2]
[311446421,1705132238771,-1119.184732,0.00024179,2]
[311446422,1705132238780,-1119.184732,0.00024179,2]
[311446423,1705132238790,-471.0678306,0.00024179,2]
[311446424,1705132238800,-155.15354637,0.00024179,2]
[311446425,1705132238810,-254.93463621,0.00024179,2]
[311446426,1705132238819,-155.1054483,0.00024179,2]
[311446427,1705132238829,-618.26601653,0.00024179,2]
[311446428,1705132238838,-250.39112385,0.00024179,2]
[311446429,1705132238847,-200.0,0.00024179,2]
[311446430,1705132238857,-155.32514544,0.00024179,2]
[311446431,1705132238867,-644.98866585,0.00024179,2]